Cogmind - Beta 10.2 @@@ ROGUE MODE // 2020.11.24 @ 10:41:07 // Halloween2020/ForbiddenLore Player: Luigi Panache Result: Destroyed by S-10 Pest with Light Assault Rifle Performance ------------- Evolutions (1) 500 Regions Visited (3) 600 Robots Destroyed (1) 5 Value Destroyed (10) 10 Prototype IDs (0) 0 Alien Tech Used (0) 0 Bonus (200) 200 TOTAL SCORE: 1315 Bonus ------- Pacifist 200 Cogmind --------- Core Integrity 0/400 Matter 218/300 Energy 100/100 System Corruption 0% Temperature Cool (0) Movement Core (50) Location -9/Mines Parts ------- > --- POWER (1) -------- (None) > --- PROPULSION (2) --- (None) > --- UTILITY (4) ------ (None) > --- WEAPON (2) ------- (None) > --- INVENTORY (4) ---- Ion Engine Ion Engine Compact Wheel Small Storage Unit Peak State ------------ > --- POWER ------------ Improved Ion Engine > --- PROPULSION ------- Compact Wheel Compact Wheel > --- UTILITY ---------- Improved Sensor Array Signal Interpreter > --- WEAPON ----------- (None) > --- INVENTORY -------- Ion Engine Ion Engine Small Storage Unit [Rating: 7] Favorites ----------- Power Improved Ion Engine Engine Improved Ion Engine Propulsion Compact Wheel Wheel Compact Wheel Hover Unit Hover Unit Utility Signal Interpreter Device Improved Sensor Array Storage Small Storage Unit Processor Signal Interpreter Weapon Mace Impact Weapon Mace Build | -11 -10 -9 -9 ------- Run | Scr Mat Mat Min Slots Evolved 2 | . . 2 . Power . | . . . . Propulsion . | . . . . Utility 2 | . . 2 . Weapon . | . . . . Parts Attached 12 | 4 5 3 . Power 2 | 1 1 . . Engine 2 | 1 1 . . Core . | . . . . Reactor . | . . . . Propulsion 5 | 2 2 1 . Treads . | . . . . Leg . | . . . . Wheel 2 | 2 . . . Hover 3 | . 2 1 . Flight . | . . . . Utility 4 | 1 2 1 . Device 1 | . 1 . . Storage 2 | 1 . 1 . Processor 1 | . 1 . . Hackware . | . . . . Protection . | . . . . Artifact . | . . . . Weapon 1 | . . 1 . Energy Gun . | . . . . Energy Cannon . | . . . . Ballistic Gun . | . . . . Ballistic Cannon . | . . . . Launcher . | . . . . Special Weapon . | . . . . Impact Weapon 1 | . . 1 . Slashing Weapon . | . . . . Piercing Weapon . | . . . . Special Melee Weapon . | . . . . Unidentified Prototypes . | . . . . Parts Lost 2 | . . 1 1 Power . | . . . . Propulsion 1 | . . 1 . Utility 1 | . . . 1 Weapon . | . . . . Highest Loss Streak 1 | . . 1 1 Average Slot Usage (%) 38 | . 65 27 19 Engine 6 | . 14 3 . Wheel 8 | . 25 . . Hover 5 | . 2 11 . Device 5 | . 7 5 . Storage 4 | . 6 . 9 Processor 5 | . 8 5 . Impact Weapon 2 | . . 1 9 Naked Turns 73 | . . 70 3 Heaviest Build 9 | 9 9 8 4 Greatest Support 32 | 32 32 12 3 Greatest Overweight (x) 1 | . 1 1 1 Average Overweight (x) . | . . . 1 Largest Inventory Capacity 6 | 6 6 4 4 Average Capacity 4 | 5 4 4 4 Most Carried 4 | 1 4 4 4 Average Carried 3 | . 2 4 4 Final Capacity 6 | 6 4 4 4 Final Carried 4 | 1 4 4 4 Class Distribution -------------------- 100% | Mutant Dominant Class ---------------- Mutant | -10/Materials Mutant | -9/Materials Mutant | -9/Mines Resources | -11 -10 -9 -9 ----------- Run | Scr Mat Mat Min Matter Collected 228 | 228 . . . Remotely . | . . . . Salvage Created 12 | . . . 12 Parts 4 | . . . 4 Haulers Intercepted . | . . . . Recyclers Shooed . | . . . . Parts Field Recycled . | . . . . Retrieved Matter . | . . . . Parts Self-Destructed . | . . . . Prevented . | . . . . Kills | -11 -10 -9 -9 ------- Run | Scr Mat Mat Min Combat Hostiles Destroyed 1 | . . . 1 Melee 1 | . . . 1 Classes Destroyed 1 | . . . 1 Swarmer 1 | . . . 1 Best Kill Streak 1 | . . . 1 Combat Bots Only 1 | . . . 1 Max Kills in Single Turn 1 | . . . 1 Gunslinging . | . . . . Exploded . | . . . . Melee 1 | . . . 1 Uniques/NPCs Destroyed . | . . . . Combat | -11 -10 -9 -9 -------- Run | Scr Mat Mat Min Damage Taken 520 | . . 176 344 Core 403 | . . 146 257 Absorbed by Shields . | . . . . Core Remaining (%) 100 | 100 100 . . Volleys Fired . | . . . . Largest . | . . . . Hottest . | . . . . Shots Fired . | . . . . Gun . | . . . . Cannon . | . . . . Launcher . | . . . . Special . | . . . . Kinetic . | . . . . Thermal . | . . . . Explosive . | . . . . Electromagnetic . | . . . . Robot Hit Streak . | . . . . Robot Miss Streak . | . . . . Penetration Max . | . . . . Secondary Targets . | . . . . Shots Hit Robots 1 | . . . 1 Core Hits 1 | . . . 1 Critical Hits . | . . . . Critical Kills . | . . . . Critical Parts Destroyed . | . . . . Melee Attacks 1 | . . . 1 Impact 1 | . . . 1 Slashing . | . . . . Piercing . | . . . . Sneak Attacks . | . . . . Combat Hostiles . | . . . . Follow-up Attacks . | . . . . Damage Inflicted 13 | . . . 13 Guns . | . . . . Cannons . | . . . . Explosions . | . . . . Melee 13 | . . . 13 Ramming . | . . . . Kinetic . | . . . . Thermal . | . . . . Explosive . | . . . . Electromagnetic . | . . . . Impact 13 | . . . 13 Slashing . | . . . . Piercing . | . . . . Highest Corruption . | . . . . Average Corruption . | . . . . Corruption Purged . | . . . . Overload Shots . | . . . . Overflow Damage . | . . . . Projectiles . | . . . . Explosions . | . . . . Melee . | . . . . Knockbacks . | . . . . Impact . | . . . . Kinetic . | . . . . Secondary . | . . . . Self-Inflicted Damage . | . . . . Shots . | . . . . Rammed . | . . . . Targets Rammed . | . . . . Kicked . | . . . . Crushed . | . . . . Highest Temperature . | . . . . Average Temperature . | . . . . Received Heat Transfer 135 | . . 75 60 Siege Activations . | . . . . Robots Corrupted . | . . . . Combat Hostiles . | . . . . Parts Fried . | . . . . Impact Corruptions . | . . . . Robots Melted . | . . . . Combat Hostiles . | . . . . Parts Melted . | . . . . Heat Transferred . | . . . . Parts Sabotaged . | . . . . Parts Stolen . | . . . . Parts Stripped . | . . . . Power Chain Reactions . | . . . . Missiles Intercepted . | . . . . Alert | -11 -10 -9 -9 ------- Run | Scr Mat Mat Min Peak Influence 92 | . . 92 55 Initial 35 | . . . 35 Average 19 | . . 32 36 Maximum Alert Level . | . . . . Low Security (%) 100 | 100 100 100 100 Level 1 . | . . . . Level 2 . | . . . . Level 3 . | . . . . Level 4 . | . . . . Level 5 . | . . . . High Security . | . . . . Max Security . | . . . . Squads Dispatched . | . . . . Investigation . | . . . . Extermination . | . . . . Reinforcement . | . . . . Assault . | . . . . Garrison . | . . . . Intercept . | . . . . Construction Impeded . | . . . . Haulers Reinforced . | . . . . Stealth | -11 -10 -9 -9 --------- Run | Scr Mat Mat Min Distress Signals 2 | . . . 2 Communications Jammed . | . . . . Distress Signals . | . . . . Times Spotted 11 | . . 5 6 Peak Tracking Total 6 | . . 3 6 Tactical Retreats 2 | . . 2 . Traps | -11 -10 -9 -9 ------- Run | Scr Mat Mat Min Traps Triggered 2 | . . 2 . Indirectly . | . . . . Trap Hack Attempts . | . . . . Triggered . | . . . . Disarmed . | . . . . Reprogrammed . | . . . . Reused . | . . . . Traps Extracted . | . . . . Installed . | . . . . Triggered . | . . . . Machines | -11 -10 -9 -9 ---------- Run | Scr Mat Mat Min Machines Disabled . | . . . . Max in Single Turn . | . . . . Machines Sabotaged . | . . . . Garrisons Compromised . | . . . . Overloaded Fab Kills . | . . . . Fab Network Shutdowns . | . . . . Hacking | -11 -10 -9 -9 --------- Run | Scr Mat Mat Min Machines Accessed 3 | . 1 2 . Terminals 3 | . 1 2 . Fabricators . | . . . . Repair Stations . | . . . . Recycling Units . | . . . . Scanalyzers . | . . . . Garrison Access . | . . . . Total Hacks 7 | . 1 6 . Successful 4 | . 1 3 . Failed 3 | . . 3 . Catastrophic . | . . . . Database Lockouts . | . . . . Manual 5 | . . 5 . Terminals 7 | . 1 6 . Fabricators . | . . . . Repair Stations . | . . . . Recycling Units . | . . . . Scanalyzers . | . . . . Garrison Access . | . . . . Terminal Hacks 3 | . 1 2 . Branch Access Points 1 | . . 1 . Terminal Index 1 | . . 1 . Registered Components 1 | . 1 . . Fabricator Hacks . | . . . . Repair Station Hacks . | . . . . Recycling Unit Hacks . | . . . . Scanalyzer . | . . . . Garrison Access Hacks . | . . . . Unauthorized Hacks 1 | . . 1 . Terminals 1 | . . 1 . Botnet 1 | . . 1 . Fabricators . | . . . . Repair Stations . | . . . . Recycling Units . | . . . . Scanalyzers . | . . . . Garrison Access . | . . . . Data Cores Recovered . | . . . . Used . | . . . . Hacking Detections 2 | . . 2 . Full Trace Events . | . . . . Feedback Events . | . . . . Feedback Blocked . | . . . . Robot Schematics Acquired . | . . . . Robots Built . | . . . . Matter . | . . . . Time . | . . . . Total Robot Build Rating . | . . . . Part Schematics Acquired . | . . . . Parts Built . | . . . . Matter . | . . . . Time . | . . . . Total Part Build Rating . | . . . . Parts Repaired . | . . . . Time . | . . . . Parts Recycled . | . . . . Recycled Matter . | . . . . Retrieved Matter . | . . . . Retrieved Components . | . . . . Parts Scanalyzed . | . . . . Part Schematics Acquired . | . . . . Parts Damaged . | . . . . Bothacking | -11 -10 -9 -9 ------------ Run | Scr Mat Mat Min Used RIF Installer . | . . . . Robots Hacked . | . . . . Non-combat . | . . . . Combat . | . . . . Robot Hacks Applied . | . . . . Relay Couplers Released . | . . . . Robots Rewired . | . . . . Allies Hacked . | . . . . Hacks Repelled . | . . . . Allies | -11 -10 -9 -9 -------- Run | Scr Mat Mat Min Total Allies . | . . . . Largest Group . | . . . . Highest-Rated Group . | . . . . Highest-Rated Ally . | . . . . Total Orders . | . . . . Ally Attacks . | . . . . Total Damage . | . . . . Kills . | . . . . Allies Corrupted . | . . . . Allies Melted . | . . . . Intel | -11 -10 -9 -9 ------- Run | Scr Mat Mat Min Robot Analysis Total . | . . . . Derelict Logs Recovered . | . . . . Drone Launches . | . . . . Drone Recoveries . | . . . . Exploration | -11 -10 -9 -9 ------------- Run | Scr Mat Mat Min Turns Passed 459 | 61 137 184 77 Spaces Moved 514 | 43 123 281 67 Core 242 | 2 . 173 67 Treads . | . . . . Legs . | . . . . Wheels 145 | 41 104 . . Hover 127 | . 19 108 . Flight . | . . . . Fastest Speed 50 | 50 56 50 100 Average Speed 72 | 97 93 52 100 Slowest Speed 120 | 100 120 100 100 Overloaded Moves . | . . . . Propulsion Burnouts . | . . . . Robots Hopped . | . . . . Cave-ins Triggered . | . . . . Exploration Rate (%) 19 | 3 27 22 27 Regions Visited 3 Branch Regions 1 Pre-discovered Areas . | . . . . Known Exits Taken 2 | . 1 1 . Unknown Exits Taken 1 | 1 . . . Scrap Searched . | . . . . Spaces Dug . | . . . . Terrain Destroyed . | . . . . Melee . | . . . . Projectile . | . . . . AOE . | . . . . Terrain Rammed . | . . . . Walls Destroyed . | . . . . Machines Disabled . | . . . . Actions | -11 -10 -9 -9 --------- Run | Scr Mat Mat Min Total 593 | 59 143 315 76 Wait 64 | 12 13 32 7 Move 511 | 42 122 280 67 Hop . | . . . . Pick Up 1 | 1 . . . Fast Attach 11 | 4 4 3 . Attach . | . . . . Detach 2 | . 2 . . Swap 1 | . 1 . . Drop 2 | . 1 . 1 Fire . | . . . . Melee 1 | . . . 1 Ram . | . . . . Kick . | . . . . Crush . | . . . . Escape Stasis . | . . . . Rewire . | . . . . Trap . | . . . . Miscellaneous . | . . . . Route ------- -11/Scrapyard -10/Materials -9/Materials (discovered 2 exits: *Min x2) -9/Mines History --------- Turn | Location | Event 8 | -11/Scrapyard | Discovered new exit (range 16) 62 | -11/Scrapyard | Entered Materials 138 | -10/Materials | Discovered new exit (range 15) 163 | -10/Materials | Identified exit to Materials 199 | -10/Materials | Entered another Materials area 199 | -9/Materials | Evolved 2 slots: Utility x2 203 | -9/Materials | Identified exit to Mines 310 | -9/Materials | Build established: Mutant 383 | -9/Materials | Entered Mines 410 | -9/Mines | Assembled infested the area 432 | -9/Mines | Core integrity fell below 50% 454 | -9/Mines | Core integrity fell below 20% 460 | -9/Mines | Destroyed by S-10 Pest with Light Assault Rifle Last Messages --------------- 00287_ K-01 Serf collects debris. 00287_ Hover Unit destroyed. 00291_ K-01 Serf collects debris. 00298_ Triggered Blade Trap. 00298_ Massive razor-sharp blades shoot up from within the floor. 00298_ Hover Unit severed. 00298_ Imp. Sensor Array severed. 00298_ Signal Interpreter severed. 00301_ K-01 Serf collects debris. 00368_ Acquired Mace. 00380_ Acquired Med. Matter Pod. LOCATION=MINES GOAL=ESCAPE Something is scanning the area. 00384_ K-01 Serf collects debris. 00410_ ALERT: Infestation in the mines, dispatching Demolisher response squad. 00451_ S-10 Pest destroyed. 00454_ Dropped Mace. 00457_ Med. Matter Pod destroyed. Map ----- +----------------------------------------------------+ | ???????????????????????###???????????????????# | | ??????????????????????## #??????????????????# | | ??????????????????????# ??????????????##### | | ??????????????????????# ??????????????# | | ??????????????????????# ##????????????# ## | | ??????????????????????? ########?????# ## | | ???????????????????????? ##????# ## """ | | ?????????????????????????# ##???# ## """ | | ??????????????????????????# #???# ## """ | | ??????????????????????????# #???# ## | | ??????????????????????????# ##??# ###### | | ???????????????????????#### #### #?? | | ???????????????????????# ##?? | | ???????????????????????# ###### ##??? | | ???????????????????????# #????## ##???? | | ???????????????????##### ###???## ###????? | | ???????????????????# #???## ##??????? | | ???????????????????# #?### #???????? | | ???????????????????# """ ### ##??????? | | ???????????????????# """ ## ######## | | ???????????????????# """ ## | | ???????????????????# s ### | | ???????????????????# """ #?##### ####### | | ???????????????????# """ #?????## #?????? | | ???????????????????# g=""" #??????## #????? | | ???????????????????# =g@s #???????## #????? | | ???????????????????# *""" #????????## #????? | | ???????????????????# g""" #?????????## #????? | | ???????????????????# """ #??????????## #????? | | ???????????????????# #???????????## ????? | | ???????????????????##### ####????????????## ???? | | ???????????????????????# ?????????????????? ???? | | ??????????????????????? ?????????????????? ???? | | ??????????????????????? ??????????????????# #??? | | ???????????????????????? ??????????????????? ##??? | | ???????????????????????????????????????????? #???? | | ???????????????????????????????????????????? #???? | | ?????????????????????????????????????????????#???? | | ?????????????????????????????????????????????????? | | ?????????????????????????????????????????????????? | | ?????????????????????????????????????????????????? | | ?????????????????????????????????????????????????? | | ?????????????????????????????????????????????????? | | ?????????????????????????????????????????????????? | | ?????????????????????????????????????????????????? | | ?????????????????????????????????????????????????? | | ?????????????????????????????????????????????????? | | ?????????????????????????????????????????????????? | | ?????????????????????????????????????????????????? | | ?????????????????????????????????????????????????? | +----------------------------------------------------+ Best States ------------- Heat Dissipation 28 Energy Generation 12 Energy Capacity 265 Matter Stores 288 Matter Capacity 400 Sight Range 16 Robot Scan Range 13 Terrain Scan Density 10 Evasion (%) 53 Item Schematics ----------------- None Robot Schematics ------------------ None Fabricated ------------ Nothing Alien Tech Used ----------------- None Achievements -------------- None Challenges ------------ None Game ------ Seed GyrokineticOmegaCutter Manual? 0 Play Time 00:09:59 Cumulative 121.7 hours Start 2020.11.24 @ 10:31:32 End 2020.11.24 @ 10:41:07 Sessions 1 Manual Loads 0 Difficulty Rogue Special Mode Halloween2020/ForbiddenLore Game No. 80 Rogue 22 Adventurer 21 Explorer 37 Win Type - Total 6 Types 6/0/0/0/0/0/0/0/0 Lore% 47 Gallery% 70 Achievement% 57 Wizard Run 0 Options --------- ASCII 1 Keyboard 0 Movement Numpad Keybinds 0 Fullscreen 2 Font 18/Terminus Map View 76x50 Tactical HUD 1 Map Filters NONE Filters NONE Steam 1 RUN: 883c8795-a4f8-4d76-9b61-d083a64e8137